Cogmind - Beta 13 @@@ ROGUE MODE // 2024.05.17 @ 21:37:07 Player: Morphaana Result: Self-destructed Performance ------------- Evolutions (1) 500 Regions Visited (5) 1000 Robots Destroyed (55) 275 Value Destroyed (885) 885 Prototype IDs (1) 20 Alien Tech Used (0) 0 Bonus (-11) -11 TOTAL SCORE: 2669 Bonus ------- Friendly Fire -11 Cogmind --------- Core Integrity 261/400 Matter 286/300 Energy 275/275 System Corruption 5% Temperature Cool (69) Movement Treading (170) Location -9/Exiles Parts ------- > --- POWER (1) -------- Deuterium Engine > --- PROPULSION (3) --- Armored Treads Armored Treads Armored Treads > --- UTILITY (3) ------ Large Storage Unit Advanced Targeting Computer Light Armor Plating > --- WEAPON (2) ------- Heavy Assault Rifle > --- INVENTORY (15) --- Light Treads Light Treads Armored Treads Flight Unit VTOL Module Structural Scanner Improved Targeting Computer Improved Propulsion Shielding Improved Propulsion Shielding Hardened Light Armor Plating Heavy Assault Rifle Heavy Assault Rifle Heavy Assault Rifle Improved Grenade Launcher Hammer Peak State ------------ > --- POWER ------------ Deuterium Engine > --- PROPULSION ------- Armored Treads Armored Treads Armored Treads > --- UTILITY ---------- Large Storage Unit Advanced Targeting Computer Light Armor Plating > --- WEAPON ----------- Heavy Assault Rifle Improved Grenade Launcher > --- INVENTORY -------- Light Treads Light Treads Armored Treads Flight Unit Flight Unit Flight Unit Structural Scanner Improved Targeting Computer Improved Propulsion Shielding Hardened Light Armor Plating Heavy Assault Rifle Heavy Assault Rifle Heavy Assault Rifle Heavy Assault Rifle Hammer [Rating: 24] Favorites ----------- Power Deuterium Engine Engine Deuterium Engine Propulsion Armored Treads Treads Armored Treads Utility Large Storage Unit Storage Large Storage Unit Processor Advanced Targeting Computer Protection Light Armor Plating Weapon Heavy Assault Rifle Energy Gun Medium Laser Ballistic Gun Heavy Assault Rifle Ballistic Cannon Light Cannon Launcher Improved Grenade Launcher Build | -11 -10 -10 -9 -9 -9 ------- Run | Yrd Mat Min Mat Min Exi Slots Evolved 2 | . . . 2 . . Power . | . . . . . . Propulsion 1 | . . . 1 . . Utility 1 | . . . 1 . . Weapon . | . . . . . . Parts Attached 42 | 6 5 7 19 5 . Power 2 | 1 . 1 . . . Engine 2 | 1 . 1 . . . Core . | . . . . . . Reactor . | . . . . . . Propulsion 9 | 2 . 1 6 . . Treads 9 | 2 . 1 6 . . Leg . | . . . . . . Wheel . | . . . . . . Hover . | . . . . . . Flight . | . . . . . . Utility 12 | 1 4 3 3 1 . Device . | . . . . . . Storage 5 | 1 2 2 . . . Processor 3 | . 2 1 . . . Hackware . | . . . . . . Protection 4 | . . . 3 1 . Artifact . | . . . . . . Weapon 19 | 2 1 2 10 4 . Energy Gun 2 | 2 . . . . . Energy Cannon . | . . . . . . Ballistic Gun 11 | . 1 1 7 2 . Ballistic Cannon 1 | . . 1 . . . Launcher 5 | . . . 3 2 . Special Weapon . | . . . . . . Impact Weapon . | . . . . . . Slashing Weapon . | . . . . . . Piercing Weapon . | . . . . . . Special Melee Weapon . | . . . . . . Unidentified Prototypes 1 | . . . 1 . . Parts Lost 4 | . 2 1 . . 1 Power . | . . . . . . Propulsion . | . . . . . . Utility 1 | . 1 . . . . Weapon 3 | . 1 1 . . 1 Highest Loss Streak 2 | . 2 1 . . 1 To Critical Strikes . | . . . . . . Average Slot Usage (%) 97 | . 92 99 99 100 100 Engine 12 | . 14 14 11 11 11 Treads 30 | . 28 28 33 33 33 Storage 12 | . 14 14 11 11 11 Processor 10 | . 7 14 11 11 11 Protection 5 | . . . 10 11 11 Energy Gun 5 | . 15 8 . . . Ballistic Gun 18 | . 12 19 21 21 22 Naked Turns . | . . . . . . Heaviest Build 41 | 14 28 32 41 41 38 Greatest Support 60 | 40 40 40 60 60 60 Greatest Overweight (x) 1 | 1 . . . . . Average Overweight (x) . | . . . . . . Largest Inventory Capacity 25 | 8 15 25 15 15 15 Average Capacity 14 | 7 13 15 15 15 15 Most Carried 15 | 1 14 15 15 15 15 Average Carried 12 | . 8 13 14 14 15 Final Capacity 15 | 8 15 15 15 15 15 Final Carried 15 | . 14 13 15 15 15 Class Distribution -------------------- 100% | Mutant Dominant Class ---------------- Mutant | -10/Materials Mutant | -10/Mines Mutant | -9/Materials Mutant | -9/Mines Mutant | -9/Exiles Resources | -11 -10 -10 -9 -9 -9 ----------- Run | Yrd Mat Min Mat Min Exi Matter Collected 1172 | 260 153 77 538 144 . Remotely . | . . . . . . Salvage Created 1326 | . 485 75 712 54 . Parts 106 | . 38 9 49 10 . Haulers Intercepted 8 | . 2 . 6 . . Recyclers Shooed 1 | . . . 1 . . Parts Field Recycled . | . . . . . . Retrieved Matter . | . . . . . . Parts Self-Destructed . | . . . . . . Prevented . | . . . . . . Kills | -11 -10 -10 -9 -9 -9 ------- Run | Yrd Mat Min Mat Min Exi Combat Hostiles Destroyed 35 | . 11 2 13 9 . Guns 20 | . 11 1 7 1 . Cannons 1 | . . 1 . . . AOE 14 | . . . 6 8 . Classes Destroyed 9 | . 6 2 1 . . Worker 2 | . . 1 1 . . Builder 2 | . 2 . . . . Tunneler 1 | . . 1 . . . Hauler 8 | . 2 . 6 . . Operator 4 | . 2 . 2 . . Watcher 3 | . 1 . 2 . . Swarmer 22 | . 6 . 8 8 . Grunt 10 | . 5 2 2 1 . Sentry 3 | . . . 3 . . Best Kill Streak 6 | . 6 2 5 4 . Combat Bots Only 4 | . 3 1 4 4 . Max Kills in Single Turn 4 | . 1 1 4 4 . Gunslinging . | . . . . . . Exploded 4 | . . . 3 4 . Melee . | . . . . . . Uniques/NPCs Destroyed . | . . . . . . Combat | -11 -10 -10 -9 -9 -9 -------- Run | Yrd Mat Min Mat Min Exi Hostile Shots Fired 182 | . 68 9 63 29 13 Missed 57 | . 17 2 25 9 4 Damage Taken 1279 | . 459 82 386 197 155 Core 245 | . 104 2 81 26 32 Absorbed by Shields . | . . . . . . Core Remaining (%) 78 | 100 . 57 . . . Volleys Fired 132 | . 63 7 52 9 1 Largest 2 | . 2 2 2 2 1 Hottest 90 | . 90 70 46 46 23 Shots Fired 253 | . 125 12 100 14 2 Gun 244 | . 125 11 96 10 2 Cannon 1 | . . 1 . . . Launcher 8 | . . . 4 4 . Special . | . . . . . . Kinetic 165 | . 49 8 96 10 2 Thermal 67 | . 63 4 . . . Explosive 8 | . . . 4 4 . Electromagnetic 13 | . 13 . . . . Robot Hit Streak 11 | . 11 10 10 9 7 Robot Miss Streak 6 | . 6 . 3 2 . Penetration Max . | . . . . . . Secondary Targets 1 | . 1 . . . . Max Gunslinging Chain 1 | . 1 . . . . Shots Hit Robots 144 | . 64 10 57 11 2 Core Hits 77 | . 30 6 29 11 1 Critical Kills . | . . . . . . Critical Parts Destroyed . | . . . . . . Critical Strikes 5 | . 3 2 . . . Burn 5 | . 3 2 . . . Melee Attacks . | . . . . . . Impact . | . . . . . . Slashing . | . . . . . . Piercing . | . . . . . . Sneak Attacks . | . . . . . . Combat Hostiles . | . . . . . . Follow-up Attacks . | . . . . . . Damage Inflicted 2907 | . 731 126 1394 621 35 Guns 1867 | . 729 103 871 129 35 Cannons 18 | . . 18 . . . Explosions 996 | . . . 515 481 . Melee . | . . . . . . Ramming 26 | . 2 5 8 11 . Kinetic 1305 | . 199 71 871 129 35 Thermal 492 | . 442 50 . . . Explosive 996 | . . . 515 481 . Electromagnetic 88 | . 88 . . . . Impact . | . . . . . . Slashing . | . . . . . . Piercing . | . . . . . . Highest Corruption 5 | . . . 5 5 5 Average Corruption 2 | . . . 1 5 5 Corruption Purged . | . . . . . . Corruption Blocked . | . . . . . . Effects 34 | . . . 9 20 5 Message Errors 15 | . . . 5 8 2 Matter Fused 5 | . . . 1 3 1 Heat Flow Errors 3 | . . . 1 2 . Energy Discharges 5 | . . . 1 4 . Data Loss (minor) 4 | . . . 1 2 1 Data Loss (major) 1 | . . . . 1 . Misfires 1 | . . . . . 1 Overload Shots . | . . . . . . Overflow Damage 31 | . . . 3 28 . Projectiles . | . . . . . . Explosions 31 | . . . 3 28 . Melee . | . . . . . . Knockbacks . | . . . . . . Impact . | . . . . . . Kinetic . | . . . . . . Secondary . | . . . . . . Self-Inflicted Damage 43 | . . . 17 26 . Shots 2 | . . . 1 1 . Rammed 6 | . 1 2 1 2 . Targets Rammed 7 | . 1 3 1 2 . Kicked . | . . . . . . Crushed 1 | . . 1 . . . Highest Temperature 450 | . 450 40 145 244 49 Average Temperature 81 | . 88 18 55 92 28 Received Heat Transfer 369 | . 123 42 60 24 120 Effects 4 | . 4 . . . . Shutdowns 1 | . 1 . . . . Interference 2 | . 2 . . . . Matter Decay 1 | . 1 . . . . Siege Activations . | . . . . . . Robots Corrupted . | . . . . . . Combat Hostiles . | . . . . . . Parts Fried . | . . . . . . Impact Corruptions . | . . . . . . Robots Melted . | . . . . . . Combat Hostiles . | . . . . . . Parts Melted 1 | . 1 . . . . Heat Transferred 1813 | . 1517 296 . . . Parts Sabotaged . | . . . . . . Parts Stolen . | . . . . . . Parts Stripped . | . . . . . . Power Chain Reactions . | . . . . . . Alert | -11 -10 -10 -9 -9 -9 ------- Run | Yrd Mat Min Mat Min Exi Peak Influence 371 | . 371 68 287 339 . Initial 108 | . . 18 . 108 . Average 138 | . 151 22 131 240 . Maximum Alert Level 1 | . 1 . 1 1 . Low Security (%) 73 | 100 82 100 65 50 . Level 1 26 | . 17 . 34 49 . Level 2 . | . . . . . . Level 3 . | . . . . . . Level 4 . | . . . . . . Level 5 . | . . . . . . High Security . | . . . . . . Max Security . | . . . . . . Squads Dispatched 8 | . 3 1 4 . . Investigation 5 | . 2 1 2 . . Extermination . | . . . . . . Reinforcement 3 | . 1 . 2 . . Assault . | . . . . . . Garrison . | . . . . . . Intercept . | . . . . . . Searches Triggered . | . . . . . . Construction Impeded . | . . . . . . Haulers Reinforced . | . . . . . . Active Scanning Responses . | . . . . . . Cargo Convoy Interrupts . | . . . . . . Stealth | -11 -10 -10 -9 -9 -9 --------- Run | Yrd Mat Min Mat Min Exi Distress Signals 3 | . 1 . 2 . . Communications Jammed . | . . . . . . Distress Signals . | . . . . . . Times Spotted 77 | . 26 5 29 10 7 Peak Tracking Total 10 | . 5 3 4 4 10 Tactical Retreats 4 | . 2 . 2 . . Traps | -11 -10 -10 -9 -9 -9 ------- Run | Yrd Mat Min Mat Min Exi Traps Triggered 2 | . . . 2 . . Indirectly . | . . . . . . Trap Hack Attempts . | . . . . . . Triggered . | . . . . . . Disarmed . | . . . . . . Reprogrammed . | . . . . . . Reused . | . . . . . . Traps Extracted . | . . . . . . Installed . | . . . . . . Triggered 1 | . . . . 1 . Machines | -11 -10 -10 -9 -9 -9 ---------- Run | Yrd Mat Min Mat Min Exi Machines Disabled 3 | . . . 2 1 . Max in Single Turn 1 | . . . 1 1 . Machines Repaired . | . . . . . . Machines Dismantled . | . . . . . . Machines Sabotaged . | . . . . . . Overloaded Fab Kills . | . . . . . . Hacking | -11 -10 -10 -9 -9 -9 --------- Run | Yrd Mat Min Mat Min Exi Machines Accessed 17 | . 7 2 8 . . Terminals 11 | . 5 . 6 . . Fabricators . | . . . . . . Repair Stations 1 | . 1 . . . . Recycling Units 3 | . 1 . 2 . . Scanalyzers . | . . . . . . Garrison Access . | . . . . . . Total Hacks 44 | . 22 2 20 . . Successful 18 | . 7 2 9 . . Failed 25 | . 14 . 11 . . Catastrophic 3 | . 2 . 1 . . Database Lockouts 1 | . 1 . . . . Manual 35 | . 18 . 17 . . Terminals 34 | . 17 . 17 . . Fabricators . | . . . . . . Repair Stations 4 | . 4 . . . . Recycling Units 4 | . 1 . 3 . . Scanalyzers . | . . . . . . Garrison Access . | . . . . . . Terminal Hacks 11 | . 4 2 5 . . Part Schematic 1 | . . . 1 . . Robot Analysis 3 | . 1 . 2 . . Open Door 2 | . . 2 . . . Level Access Points 1 | . . . 1 . . Locate Traps 1 | . 1 . . . . Maintenance Status 1 | . 1 . . . . Hauler Manifests 2 | . 1 . 1 . . Fabricator Hacks . | . . . . . . Repair Station Hacks 1 | . 1 . . . . Scan Component 1 | . 1 . . . . Recycling Unit Hacks 2 | . 1 . 1 . . Report Inventory 2 | . 1 . 1 . . Scanalyzer . | . . . . . . Garrison Access Hacks . | . . . . . . Unauthorized Hacks 4 | . 1 . 3 . . Terminals 4 | . 1 . 3 . . Botnet 4 | . 1 . 3 . . Fabricators . | . . . . . . Repair Stations . | . . . . . . Recycling Units . | . . . . . . Scanalyzers . | . . . . . . Garrison Access . | . . . . . . Data Cores Recovered . | . . . . . . Used . | . . . . . . Hacking Detections 12 | . 7 . 5 . . Full Trace Events 5 | . 3 . 2 . . Feedback Events 1 | . . . 1 . . Corruption 1 | . . . 1 . . Feedback Blocked . | . . . . . . Robot Schematics Acquired . | . . . . . . Robots Built . | . . . . . . Authchips . | . . . . . . Time . | . . . . . . Total Robot Build Rating . | . . . . . . Part Schematics Acquired 1 | . . . 1 . . Parts Built . | . . . . . . Authchips . | . . . . . . Time . | . . . . . . Total Part Build Rating . | . . . . . . Parts Repaired . | . . . . . . Time . | . . . . . . Parts Recycled . | . . . . . . Recycled Matter . | . . . . . . Retrieved Matter . | . . . . . . Retrieved Components . | . . . . . . Parts Scanalyzed . | . . . . . . Part Schematics Acquired . | . . . . . . Parts Damaged . | . . . . . . Bothacking | -11 -10 -10 -9 -9 -9 ------------ Run | Yrd Mat Min Mat Min Exi Used RIF Installer . | . . . . . . Robots Hacked . | . . . . . . Non-combat . | . . . . . . Combat . | . . . . . . Robot Hacks Applied . | . . . . . . Relay Couplers Released . | . . . . . . Fabnet Peak Effective % . | . . . . . . Robots Rewired . | . . . . . . Allies Hacked . | . . . . . . Hacks Repelled . | . . . . . . Allies | -11 -10 -10 -9 -9 -9 -------- Run | Yrd Mat Min Mat Min Exi Total Allies . | . . . . . . Largest Group . | . . . . . . Highest-Rated Group . | . . . . . . Highest-Rated Ally . | . . . . . . Total Orders . | . . . . . . Ally Attacks . | . . . . . . Total Damage . | . . . . . . Kills . | . . . . . . Allies Corrupted . | . . . . . . Allies Melted . | . . . . . . Intel | -11 -10 -10 -9 -9 -9 ------- Run | Yrd Mat Min Mat Min Exi Robot Analysis Total 3 | . 1 . 2 . . Derelict Logs Recovered 2 | . . 1 . 1 . Drone Launches . | . . . . . . Drone Recoveries . | . . . . . . Exploration | -11 -10 -10 -9 -9 -9 ------------- Run | Yrd Mat Min Mat Min Exi Turns Passed 4449 | 66 1299 671 1470 798 145 Spaces Moved 2328 | 37 652 392 737 426 84 Core 6 | 6 . . . . . Treads 2322 | 31 652 392 737 426 84 Legs . | . . . . . . Wheels . | . . . . . . Hover . | . . . . . . Flight . | . . . . . . Fastest Speed 50 | 50 160 160 160 170 170 Average Speed 164 | 144 160 160 166 170 170 Slowest Speed 170 | 160 160 160 170 170 170 Overloaded Moves . | . . . . . . Propulsion Burnouts . | . . . . . . Robots Hopped . | . . . . . . Cave-ins Triggered . | . . . . . . Exploration Rate (%) 62 | 3 95 89 63 93 33 Regions Visited 5 Branch Regions 3 Pre-discovered Areas 1 | . . 1 . . . Known Exits Taken . | . . . . . . Unknown Exits Taken 5 | 1 1 1 1 1 . Scrap Searched 2 | . . 1 . 1 . Spaces Dug . | . . . . . . Terrain Destroyed 103 | . . . 58 45 . Melee . | . . . . . . Projectile . | . . . . . . AOE 103 | . . . 58 45 . Terrain Rammed . | . . . . . . Walls Destroyed . | . . . . . . Machines Disabled . | . . . . . . Actions | -11 -10 -10 -9 -9 -9 --------- Run | Yrd Mat Min Mat Min Exi Total 2709 | 47 791 423 879 484 85 Wait 155 | 4 54 9 48 40 . Move 2323 | 36 651 391 736 425 84 Hop . | . . . . . . Pick Up 27 | 1 15 2 8 1 . Fast Attach 14 | 5 4 . 5 . . Attach 4 | 1 1 1 1 . . Detach . | . . . . . . Swap 24 | . . 6 13 5 . Drop 23 | . 2 4 15 2 . Fire 132 | . 63 7 52 9 1 Melee . | . . . . . . Ram . | . . . . . . Kick . | . . . . . . Crush 7 | . 1 3 1 2 . Escape Stasis . | . . . . . . Rewire . | . . . . . . Trap . | . . . . . . Miscellaneous . | . . . . . . Route ------- -11/Scrapyard -10/Materials (discovered 5 exits: *Mat x3 / *Min x2) -10/Mines (discovered 2 exits: *Mat x2) -9/Materials (discovered 5 exits: *Mat x3 / [*Min] / Sto) -9/Mines (discovered 3 exits: *Mat x2 / [*Exi]) -9/Exiles History --------- Turn | Location | Event 22 | -11/Scrapyard | Discovered new exit (range 15) 67 | -11/Scrapyard | Entered Materials 274 | -10/Materials | Discovered new exit (range 7) 311 | -10/Materials | Build established: Mutant 497 | -10/Materials | Discovered new exit (range 7) 610 | -10/Materials | Discovered new exit (range 11) 979 | -10/Materials | Discovered new exit (range 12) 1139 | -10/Materials | Central database locked down 1143 | -10/Materials | Discovered new exit (range 3) 1366 | -10/Materials | Entered Mines 1390 | -10/Mines | Met a Derelict bent on vengeance 1501 | -10/Mines | Met a Derelict who couldn't figure out how to use a Trap Extractor 1644 | -10/Mines | Learned location of Storage (-9) 1676 | -10/Mines | Discovered new exit (range 3) 1689 | -10/Mines | Discovered new exit (range 4) 1733 | -10/Mines | Met a Derelict shopkeep closing up shop 2037 | -10/Mines | Entered Materials 2037 | -9/Materials | Evolved 2 slots: Propulsion x1, Utility x1 2038 | -9/Materials | Identified exit to Storage 2283 | -9/Materials | Identified exit to Materials 2933 | -9/Materials | Discovered new exit (range 15) 3507 | -9/Materials | Entered Mines 3770 | -9/Mines | Discovered exit to Materials (range 5) 3921 | -9/Mines | Joined a pair of Derelicts in attacking an 0b10 outpost 4100 | -9/Mines | Discovered exit to Materials (range 15) 4151 | -9/Mines | Learned 2 Materials zone layouts 4299 | -9/Mines | Deemed a non-threat by the Exiles lab entrance 4299 | -9/Mines | Discovered new exit (range 5) 4305 | -9/Mines | Entered Exiles 4350 | -9/Exiles | Met 8R-AWN 4379 | -9/Exiles | Met EX-HEX 4433 | -9/Exiles | Met EX-BIN 4435 | -9/Exiles | Attacked by the Exiles 4450 | -9/Exiles | Self-destructed Last Messages --------------- determine their precise locations! It's pretty reliable so far, and once we've tweaked it to perfection it'll be much safer for us to move around anywhere in the complex. Want in on the action? Just step right into the FarCom Aligner and I'll do the rest. Now, I'll admit there could be side effects, but if you're willing to participate in the trials you can have one of our prototypes. How's that for a sweet deal? System corrupted: FCS attempts to trigger Hvy. Assault Rifle. System corrupted: Hvy. Assault Rifle misfires. EX-BIN: "Please do it. The faster we get more data and tweak this thing to perfection, the faster I can get back to my spacelab designs." EXILES: Hostile robot within lab perimeter. Defensive protocols time, folks! EX-BIN: "I just want to science!" Hvy. Assault Rifle destroyed. Map ----- +----------------------------------------------------+ | ?????????????????????????????????????????????????? | | ?????????????????????????????????????????????????? | | ?????????????????????????????????????????????????? | | ?????????????????????????????????????????????????? | | ?????????????????????????? ?????????????????????? | | ???????????????????????? ?????????????????????? | | ??????????????????????# ?????????????????????? | | ??????????????????????# ??????"??????????????? | | ??????????????????????# #??"""""?????????????? | | ?????????????????????## ###"" """????????????? | | ?????????????????????#" """????????????? | | ?????????????????????#" ""????????????? | | ?????????????????????#" """???????????? | | ?????????????????????#" """???????????? | | ?????????????????????#" """???????????? | | ?????????????????????#" ""????????????? | | ??????????????????????# ""????????????? | | ??????????????????????# ""????????????? | | ??????????????????????#" "X" ""????????????? | | ??????????????????????#" """ ???????????? | | ??????????????????????#" """"""""????????????? | | ?????????????????????##" ########?????????????? | | ????????????????????##"" #????????????????????? | | ??????????????????###"" #????????????????????? | | ????????????????""""""" ##???????????????????? | | ????????????????"" " "" @a ##???###########????? | | ???????????????""" " a a#####"""""""""##???? | | ?????????????? " aa " """ """"##??? | | ???????????? aa "" " #??? | | ???????????? " """#??? | | ???????????? " "#??? | | ???????????? " "##?? | | ???????????? ""### | | ????????????? """""" """# | | ????????????? ######""" "# | | ??????????????c ""#?????#####""" # | | ??????????????"?"#??????????##""" | | ?????????????????????????????#"""" | | ?????????????????????????????#"" | | ?????????????????????????????"""" | | ?????????????????????????????? | | ????????????????????????????? | | ???????????????????????????? | | ???????????????????????????? | | ???????????????????????????? " | | ????????????????????????????"" """ "" | | ?????????????????????????????"" " " ""#" "# | | ????????????????????????????????""" ""?##"""""""## | | ??????????????????????????????????""????#########? | | ?????????????????????????????????????????????????? | +----------------------------------------------------+ Best States ------------- Heat Dissipation 28 Energy Generation 14 Energy Capacity 275 Matter Stores 300 Matter Capacity 300 Sight Range 16 Terrain Scan Density 10 Armor Coverage 150 Evasion (%) 40 Targeting Accuracy 8 Recoil Reduction 3 Item Schematics ----------------- Hrd. Light Armor Plating | -9/Materials | Hacked Robot Schematics ------------------ None Fabricated ------------ Nothing Alien Tech Used ----------------- None Achievements -------------- None Challenges ------------ None Game ------ Seed ThiefAdvancedLeg Manual? 0 Play Time 00:39:37 Cumulative 13.8 hours Start 2024.05.17 @ 20:53:11 End 2024.05.17 @ 21:37:07 Sessions 1 Manual Loads 0 Difficulty Rogue Special Mode None Game No. 12 Rogue 12 Adventurer 0 Explorer 0 Win Type - Total 0 Types 0/0/0/0/0/0/0/0/0 Lore% 6 Gallery% 12 Achievement% 18 Wizard Run 0 Options --------- Layout 1 ASCII 0 Keyboard 0 Movement Mouse Keybinds 0 Fullscreen 1 Font 24/Smallcaps Map View 50x35 Zoom Use 0% Tactical HUD 0 Map Filters NONE Filters NONE Steam 1 RUN: 8a6d494b-ceab-4ff0-bfe1-a2bdbdb8e3c8